bitfinex/quotes_BTCUSD_20240701
["timestamp","ask_amount","ask_price","bid_price","bid_amount"]
[1719805784022,0.01943,63481.0,63480.0,4.15740316]
[1719805785863,0.16923,63481.0,63480.0,4.19538817]
[1719805786270,0.16923,63481.0,63480.0,3.99538817]
[1719805786738,0.16923,63481.0,63480.0,3.99911941]
[1719805786946,0.16923,63481.0,63480.0,3.49541392]
[1719805787059,0.16923,63481.0,63480.0,2.735224]
[1719805787259,0.16923,63481.0,63480.0,2.72961736]
[1719805787467,0.16923,63481.0,63480.0,2.7485546]
[1719805787828,0.16923,63481.0,63480.0,2.35226009]
[1719805788047,0.16923,63481.0,63480.0,2.5485546]
[1719805788400,0.16923,63481.0,63480.0,2.3333269]
[1719805788999,0.16923,63481.0,63480.0,2.03892949]
[1719805789202,0.16923,63481.0,63480.0,2.00071087]
[1719805789409,0.16923,63481.0,63480.0,1.63843899]
[1719805789631,0.16923,63481.0,63480.0,1.68565759]
[1719805789834,0.16923,63481.0,63480.0,1.68567183]
[1719805790572,0.16923,63481.0,63480.0,1.56505338]
[1719805791412,0.16923,63481.0,63480.0,1.56405338]
[1719805791562,0.15823,63481.0,63480.0,1.56305338]
[1719805791896,0.15823,63481.0,63480.0,1.56505338]
[1719805791897,0.16923,63481.0,63480.0,1.56505338]
[1719805792402,0.16923,63481.0,63480.0,1.56405338]
[1719805792626,0.16923,63481.0,63480.0,1.57805338]
[1719805792865,0.15823,63481.0,63480.0,1.26199438]
[1719805793116,0.15823,63481.0,63480.0,1.13111698]
[1719805793379,0.15823,63481.0,63480.0,1.3353975]
[1719805794276,0.15923,63481.0,63480.0,1.6504565]
[1719805794477,0.15923,63481.0,63480.0,1.6704565]
[1719805794682,0.15923,63481.0,63480.0,1.71768866]
[1719805795516,0.15923,63481.0,63480.0,1.6704565]
[1719805796319,0.15923,63481.0,63480.0,1.53957598]
[1719805796500,0.15923,63481.0,63480.0,1.67045636]
[1719805796702,0.15923,63481.0,63480.0,1.67045635]
[1719805797927,0.15923,63481.0,63480.0,1.9176926]
[1719805798133,0.15923,63481.0,63480.0,1.7176926]
[1719805798505,0.15923,63481.0,63480.0,2.0327516]
[1719805798506,0.00943,63481.0,63480.0,2.0327516]
[1719805798950,0.00943,63481.0,63480.0,2.11405506]
[1719805799141,0.00943,63481.0,63480.0,4.03475487]
[1719805799341,0.00943,63481.0,63480.0,3.57672261]
[1719805799564,0.00943,63481.0,63480.0,4.04552277]
[1719805799790,0.00943,63481.0,63480.0,4.17637656]
[1719805800462,0.00843,63481.0,63480.0,4.17637656]
[1719805800661,0.00943,63481.0,63480.0,4.19037656]
[1719805801063,0.00843,63481.0,63480.0,4.16237656]
[1719805801417,0.02043,63481.0,63480.0,4.17737656]
[1719805801642,0.02043,63481.0,63480.0,3.90486122]
[1719805801845,0.02043,63481.0,63480.0,4.16337396]
[1719805801846,0.01943,63481.0,63480.0,4.16337396]
[1719805802212,0.03243,63481.0,63480.0,4.16437396]
[1719805802635,0.01943,63481.0,63480.0,4.16337396]
[1719805803004,0.03243,63481.0,63480.0,4.16437396]
[1719805803238,0.03243,63481.0,63480.0,4.47943296]
[1719805803441,0.02143,63481.0,63480.0,4.5560559]
[1719805803852,0.03243,63481.0,63480.0,4.5570559]
[1719805804934,0.03243,63481.0,63480.0,4.22991739]
[1719805805109,0.03243,63481.0,63480.0,4.55703772]
[1719805806150,0.00542958,63481.0,63480.0,4.55703772]
[1719805806599,3.35642958,63481.0,63480.0,4.55703772]
[1719805808142,3.35642958,63481.0,63480.0,4.16449333]
[1719805808346,3.35642958,63481.0,63480.0,4.55703262]
[1719805809381,3.35726958,63481.0,63480.0,4.55703262]
[1719805810363,3.35726958,63481.0,63480.0,3.83070397]
[1719805810567,3.35726958,63481.0,63480.0,4.02272162]
[1719805811156,3.35726958,63481.0,63480.0,3.75025754]
[1719805811366,3.35726958,63481.0,63480.0,4.02273367]
[1719805811575,3.35726958,63481.0,63480.0,4.02273304]
[1719805812184,3.35726958,63481.0,63480.0,4.09233304]
[1719805812413,3.35726958,63481.0,63480.0,4.10393304]
[1719805812811,3.35726958,63481.0,63480.0,3.90765381]
[1719805813897,3.32970958,63481.0,63480.0,4.16451281]
[1719805814012,3.32970958,63481.0,63480.0,4.30751281]
[1719805814853,3.32970958,63481.0,63480.0,4.37293931]
[1719805815049,3.32970958,63481.0,63480.0,3.80771383]
[1719805815249,3.32970958,63481.0,63480.0,2.79265483]
[1719805815451,3.41050958,63481.0,63480.0,2.53891448]
[1719805815652,3.41050958,63481.0,63480.0,2.43891448]
[1719805816053,3.41050958,63481.0,63480.0,2.37348798]
[1719805816276,3.47740958,63481.0,63480.0,2.37348798]
[1719805816842,3.47740958,63481.0,63480.0,2.47348798]
[1719805818665,3.47740958,63481.0,63480.0,2.47350402]
[1719805819972,3.47740958,63481.0,63480.0,2.56792229]
[1719805820169,3.47740958,63481.0,63480.0,1.73286329]
[1719805821415,3.47740958,63481.0,63480.0,1.73186329]
[1719805821653,3.47740958,63481.0,63480.0,1.73086329]
[1719805821867,3.47840958,63481.0,63480.0,1.75186329]
[1719805822297,3.47840958,63481.0,63480.0,1.52657598]
[1719805822488,3.47840958,63481.0,63480.0,1.65745352]
[1719805823318,3.49240958,63481.0,63480.0,1.65845352]
[1719805824087,3.49240958,63481.0,63480.0,1.63845352]
[1719805824923,3.49240958,63481.0,63480.0,1.6856583]
[1719805826118,3.49240958,63481.0,63480.0,1.55478019]
[1719805826378,3.49240958,63481.0,63480.0,1.68565638]
[1719805827232,3.49240958,63481.0,63480.0,1.70565638]
[1719805828508,3.49240958,63481.0,63480.0,1.68565638]
[1719805828664,3.49240958,63481.0,63480.0,1.70565638]
[1719805829468,3.49240958,63481.0,63480.0,1.68565638]
[1719805830085,3.49240958,63481.0,63480.0,1.63845217]
[1719805830431,3.49240958,63481.0,63480.0,1.68565638]
[1719805831022,2.49240958,63481.0,63480.0,1.68565638]
[1719805831477,2.49240958,63481.0,63480.0,1.63845217]
[1719805831822,2.49240958,63481.0,63480.0,1.65845217]
[1719805833249,2.49240958,63481.0,63480.0,1.70565608]
[1719805833431,2.49240958,63481.0,63480.0,1.65845217]
[1719805835749,2.49240958,63481.0,63480.0,1.63845217]
[1719805835957,2.49240958,63481.0,63480.0,1.56505217]
[1719805836158,2.49240958,63481.0,63480.0,1.63845217]
[1719805837377,2.49240958,63481.0,63480.0,1.95351117]
[1719805838014,2.49240958,63481.0,63480.0,1.63845217]
[1719805838381,2.49240958,63481.0,63480.0,1.68565326]
[1719805838576,2.49240958,63481.0,63480.0,1.55478061]
[1719805838913,2.49240958,63481.0,63480.0,1.68565681]
[1719805840087,2.49240958,63481.0,63480.0,2.00071581]
[1719805840239,2.49240958,63481.0,63480.0,2.02071581]
[1719805840441,2.42550958,63481.0,63480.0,2.02071581]
[1719805840849,2.34470958,63481.0,63480.0,2.42071581]
[1719805841258,2.34470958,63481.0,63480.0,2.59011813]
[1719805841494,2.34470958,63481.0,63480.0,2.65555355]
[1719805841697,2.34470958,63481.0,63480.0,2.5856706]
[1719805841897,2.34470958,63481.0,63480.0,2.5856629]
[1719805842885,2.34470958,63481.0,63480.0,2.60457878]
[1719805844935,2.34470958,63481.0,63480.0,2.604579]
[1719805845787,2.34470958,63481.0,63480.0,2.339079]
[1719805845991,2.34470958,63481.0,63480.0,2.539079]
[1719805846353,2.34470958,63481.0,63480.0,2.40990078]
[1719805846777,2.34470958,63481.0,63480.0,2.40990088]
[1719805847399,2.34470958,63481.0,63480.0,2.3532011]
[1719805847601,2.34470958,63481.0,63480.0,2.258779]
[1719805848145,2.34470958,63481.0,63480.0,2.06247486]
[1719805848346,2.34470958,63481.0,63480.0,2.25878139]
[1719805850155,2.34470958,63481.0,63480.0,2.35321479]
[1719805850554,2.34470958,63481.0,63480.0,2.25878139]
[1719805851355,2.34470958,63481.0,63480.0,2.35321479]
[1719805851604,2.34470958,63481.0,63480.0,2.35324217]
[1719805851813,2.34470958,63481.0,63480.0,2.06247486]
[1719805852015,2.34470958,63481.0,63480.0,2.35324217]
[1719805853239,2.34470958,63481.0,63480.0,2.15324217]
[1719805853477,2.34470958,63481.0,63480.0,2.05878134]
[1719805854412,2.34470958,63481.0,63480.0,2.05878139]
[1719805855221,2.34470958,63481.0,63480.0,2.17691552]
[1719805856228,2.34470958,63481.0,63480.0,2.05878139]
[1719805856651,2.34470958,63481.0,63480.0,2.25878139]
[1719805857924,2.34470958,63481.0,63480.0,2.1933459]
[1719805858102,2.34470958,63481.0,63480.0,2.25878142]
[1719805860777,2.34470958,63481.0,63480.0,2.40228142]
[1719805860993,2.34470958,63481.0,63480.0,2.60228037]
[1719805861423,2.34470958,63481.0,63480.0,4.44480465]
[1719805861650,2.34470958,63481.0,63480.0,4.81004566]
[1719805861857,2.34470958,63481.0,63480.0,4.50588537]
[1719805862183,2.34470958,63481.0,63480.0,4.83299817]
[1719805862392,2.34470958,63481.0,63480.0,5.35740565]
[1719805862797,2.34470958,63481.0,63480.0,5.04234665]
[1719805863012,2.34470958,63481.0,63480.0,5.14805717]
[1719805863198,2.33070958,63481.0,63480.0,4.83199817]
[1719805863397,2.33070958,63481.0,63480.0,4.83187422]
[1719805863619,2.34370958,63481.0,63480.0,5.14793322]
[1719805863838,2.34370958,63481.0,63480.0,5.14693322]
[1719805863839,2.34270958,63481.0,63480.0,5.14693322]
[1719805864038,2.32970958,63481.0,63480.0,5.14593322]
[1719805864244,2.34370958,63481.0,63480.0,5.14693322]
[1719805864448,2.35514694,63481.0,63480.0,4.65775899]
[1719805864693,2.32970194,63481.0,63480.0,4.33064619]
[1719805864846,2.34370194,63481.0,63480.0,5.14793923]
[1719805865723,2.34370194,63481.0,63480.0,4.658765]
[1719805865922,2.34370194,63481.0,63480.0,5.14793923]
[1719805866201,2.34370194,63481.0,63480.0,4.658765]
[1719805866403,2.34370194,63481.0,63480.0,5.14793923]
[1719805866583,2.34370194,63481.0,63480.0,4.6587492]
[1719805866828,2.32870194,63481.0,63480.0,5.14789982]
[1719805867042,1.65420194,63481.0,63480.0,5.46295882]
[1719805867754,1.04939593,63481.0,63480.0,5.33584001]
[1719805867971,0.60015982,63481.0,63480.0,5.75104312]
[1719805868172,1.0,63486.0,63485.0,2.926227]
[1719805868318,1.0,63486.0,63485.0,5.01717477]
[1719805868946,1.0,63486.0,63485.0,5.01714109]
[1719805869568,1.0,63486.0,63485.0,4.20086142]
[1719805869723,1.0,63486.0,63485.0,4.5279026]
[1719805871018,1.012,63486.0,63485.0,4.5299026]
[1719805871200,1.012,63486.0,63485.0,4.5289026]
[1719805871408,1.012,63486.0,63485.0,4.5279026]
[1719805871614,1.024,63486.0,63485.0,4.73766815]
[1719805871778,1.024,63486.0,63485.0,4.73866815]
[1719805872613,1.024,63486.0,63485.0,4.5299026]
[1719805872821,1.024,63486.0,63485.0,4.46449412]
[1719805873025,1.024,63486.0,63485.0,4.52990364]
[1719805873227,1.024,63486.0,63485.0,4.13745294]
[1719805873428,1.024,63486.0,63485.0,4.52991003]
[1719805875074,0.996,63486.0,63485.0,4.52991003]
[1719805875247,0.981,63486.0,63485.0,4.52991003]
[1719805875523,0.981,63486.0,63485.0,4.73861696]
[1719805876061,0.981,63486.0,63485.0,4.73846582]
[1719805876272,0.981,63486.0,63485.0,4.76671167]
[1719805876474,0.981,63486.0,63485.0,4.55813757]
[1719805876690,0.91375,63486.0,63485.0,4.55813757]
[1719805876879,0.23360461,63486.0,63485.0,5.44062457]
[1719805877103,0.08564495,63486.0,63485.0,5.44062457]
[1719805877306,0.00084,63499.0,63489.0,3.547497]
[1719805877564,0.14722,63513.0,63512.0,1.092351]
[1719805877763,0.14722,63513.0,63512.0,1.53663998]
[1719805878090,0.14722,63513.0,63512.0,2.61214801]
[1719805878292,0.14722,63513.0,63512.0,2.67518601]
[1719805878483,0.14722,63513.0,63512.0,2.87518601]
[1719805879323,0.14822,63513.0,63512.0,2.75838098]
[1719805879530,0.14822,63513.0,63512.0,2.88918424]
[1719805880734,0.14822,63513.0,63512.0,2.70318424]
[1719805881311,0.14822,63513.0,63512.0,2.90318424]
[1719805881808,0.14822,63513.0,63512.0,2.70318424]
[1719805882251,0.14822,63513.0,63512.0,2.03747998]
[1719805882971,0.22162,63513.0,63512.0,2.03747998]
[1719805883414,0.22162,63513.0,63512.0,0.87228898]
[1719805883684,0.22162,63513.0,63512.0,0.67228898]
[1719805884455,0.22162,63513.0,63512.0,0.42865]
[1719805884703,0.22162,63513.0,63512.0,0.35755]
[1719805885188,0.22062,63513.0,63512.0,0.34355]
[1719805885418,0.22062,63513.0,63512.0,0.35755]
[1719805885911,0.14722,63513.0,63512.0,0.35755]
[1719805886185,0.14722,63513.0,63512.0,0.672451]
[1719805886424,0.14722,63513.0,63512.0,0.829901]
[1719805886661,0.14722,63513.0,63512.0,0.515]
[1719805886893,0.14722,63513.0,63512.0,0.34455]
[1719805887119,0.14722,63513.0,63512.0,0.35755]
[1719805889928,0.14722,63513.0,63512.0,0.515]
[1719805891465,0.14722,63513.0,63512.0,0.35755]
[1719805893807,0.304668,63513.0,63512.0,0.35755]
[1719805894017,0.802764,63513.0,63512.0,0.35755]
[1719805897412,1.302764,63513.0,63512.0,0.35755]
[1719805899043,1.322764,63513.0,63512.0,0.35755]
[1719805899919,1.63766,63513.0,63512.0,0.35755]
[1719805900119,1.952556,63513.0,63512.0,0.35755]
[1719805905901,1.952556,63513.0,63512.0,0.358474]
[1719805906894,2.72979098,63513.0,63512.0,0.358474]
[1719805907094,2.77965349,63513.0,63512.0,0.168674]
[1719805907429,2.77965349,63513.0,63512.0,0.154674]
[1719805907592,2.77965349,63513.0,63512.0,0.160674]
[1719805907788,2.77965349,63513.0,63512.0,0.154674]
[1719805908435,2.77965349,63513.0,63512.0,0.157674]
[1719805908838,2.87439349,63513.0,63512.0,0.158674]
[1719805909016,2.87439349,63513.0,63512.0,0.155674]
[1719805909417,2.87639349,63513.0,63512.0,0.156674]
[1719805909815,2.87439349,63513.0,63512.0,0.155674]
[1719805910358,2.87739349,63513.0,63512.0,0.156674]
[1719805910938,2.87739349,63513.0,63512.0,0.155674]
[1719805911343,0.0867,63490.0,63485.0,1.614515]
[1719805911504,0.0867,63490.0,63486.0,0.16233898]
[1719805912532,0.267903,63491.0,63486.0,0.16233898]
[1719805912533,0.267903,63491.0,63486.0,0.31985298]
[1719805913280,0.267903,63491.0,63486.0,0.32985298]
[1719805914260,0.267903,63491.0,63486.0,0.34385298]
[1719805914674,0.267903,63491.0,63486.0,0.32985298]
[1719805914864,0.267903,63491.0,63486.0,0.33185298]
[1719805915001,0.267903,63491.0,63486.0,0.34085298]
[1719805915810,0.0733,63488.0,63486.0,0.34085298]
[1719805917309,0.0733,63488.0,63486.0,0.32885298]
[1719805918365,0.0733,63488.0,63486.0,0.31985298]
[1719805918731,0.0733,63488.0,63486.0,0.33285298]
[1719805919140,0.0733,63488.0,63486.0,0.34685298]
[1719805919988,0.0733,63488.0,63486.0,0.027]
[1719805919989,0.472537,63487.0,63486.0,0.027]
[1719805921042,0.315025,63487.0,63481.0,0.1614]
[1719805921341,0.315025,63487.0,63480.0,0.158452]
[1719805921342,0.157527,63481.0,63480.0,0.000924]
[1719805921507,0.472581,63481.0,63480.0,0.000924]
[1719805923311,0.157516,63486.0,63482.0,0.1072]
[1719805924271,0.0733,63487.0,63482.0,0.1072]
[1719805924683,0.0733,63484.0,63482.0,0.1072]
[1719805925095,0.0733,63487.0,63485.0,0.157517]
[1719805925298,0.0733,63487.0,63484.0,0.157519]
[1719805925499,0.0733,63487.0,63482.0,0.42706198]
[1719805925500,0.0733,63485.0,63482.0,0.42706198]
[1719805925905,0.251613,63487.0,63482.0,0.42706198]
[1719805926222,0.251613,63487.0,63482.0,0.43506198]
[1719805926562,0.251613,63487.0,63484.0,0.007]
[1719805927065,0.251613,63487.0,63482.0,0.42706198]
[1719805927066,0.251613,63487.0,63482.0,0.43306198]
[1719805927790,0.157522,63483.0,63482.0,0.006]
[1719805927998,0.579666,63483.0,63482.0,0.006]
[1719805928211,0.157524,63482.0,63481.0,0.2]
[1719805929475,0.157524,63482.0,63481.0,0.21]
[1719805929700,0.472573,63482.0,63481.0,0.224]
[1719805929902,0.1,63489.0,63481.0,0.224]
[1719805930067,0.25751,63489.0,63484.0,0.157518]
[1719805930270,0.15751,63488.0,63482.0,0.47738398]
[1719805930470,0.157512,63487.0,63483.0,0.157522]
[1719805931313,0.15751,63488.0,63483.0,0.157522]
[1719805932266,0.15751,63488.0,63484.0,0.004]
[1719805932662,0.15751,63488.0,63483.0,0.157522]
[1719805933067,0.15751,63488.0,63484.0,0.157519]
[1719805933268,0.1,63489.0,63484.0,0.315035]
[1719805933467,0.315004,63492.0,63486.0,0.0957]
[1719805933649,0.157505,63490.0,63486.0,0.0957]
[1719805933852,0.1,63489.0,63486.0,0.0957]
[1719805934102,0.157496,63494.0,63489.0,0.157505]
[1719805934271,0.157475,63502.0,63497.0,0.157486]
[1719805934611,0.157476,63502.0,63495.0,0.472473]
[1719805934801,0.157476,63502.0,63497.0,0.157486]
[1719805934802,0.157475,63502.0,63497.0,0.157486]
[1719805934951,0.355371,63504.0,63498.0,0.157484]
[1719805935158,0.355371,63504.0,63498.0,0.271984]
[1719805935361,0.157473,63503.0,63498.0,0.1145]
[1719805936201,0.157475,63502.0,63498.0,0.1145]
[1719805936400,0.157478,63501.0,63498.0,0.1145]
[1719805936800,0.157478,63501.0,63498.0,0.003]
[1719805937606,0.157478,63501.0,63498.0,0.004]
[1719805938650,0.47242,63503.0,63498.0,0.004]
[1719805938852,0.157475,63502.0,63498.0,0.004]
[1719805939026,0.157475,63502.0,63498.0,0.001]
[1719805939453,0.157475,63502.0,63498.0,0.006]
[1719805939657,0.157475,63502.0,63497.0,0.157487]
[1719805939860,0.157475,63502.0,63498.0,0.002]
[1719805940057,0.157475,63502.0,63498.0,0.012]
[1719805940260,0.157475,63502.0,63498.0,0.01]
[1719805940585,0.157475,63502.0,63498.0,0.016]
[1719805944230,0.334946,63503.0,63498.0,0.016]
[1719805944231,0.355372,63504.0,63498.0,0.173484]
[1719805944431,0.257473,63503.0,63498.0,0.263984]
[1719805945267,0.257473,63503.0,63498.0,0.253984]
[1719805945439,0.257473,63503.0,63498.0,0.247984]
[1719805945642,0.257473,63503.0,63499.0,0.157482]
[1719805945851,0.1,63503.0,63499.0,0.157482]
[1719805946048,0.1,63504.0,63500.0,0.15748]
[1719805946454,0.33339526,63508.0,63500.0,0.15748]
[1719805946455,0.10837326,63508.0,63506.0,0.157463]
[1719805946807,0.2035,63510.0,63506.0,0.157463]
[1719805946932,0.1,63509.0,63506.0,0.157463]
[1719805947361,0.1,63509.0,63505.0,0.157467]
[1719805947758,0.82332,63513.0,63500.0,0.1137]
[1719805947759,0.823316,63513.0,63500.0,0.1137]
[1719805947922,0.257451,63512.0,63506.0,0.157463]
[1719805948123,0.257451,63512.0,63507.0,0.157462]
[1719805948322,0.1,63512.0,63508.0,0.362459]
[1719805952343,0.1,63512.0,63509.0,0.157457]
[1719805953656,0.1,63512.0,63508.0,0.1167]
[1719805953657,0.1,63512.0,63507.0,0.157461]
[1719805953979,0.0958,63511.0,63507.0,0.157461]
[1719805954430,0.0958,63511.0,63508.0,0.157459]
[1719805954621,0.2833,63512.0,63509.0,0.157457]
[1719805955435,0.2833,63512.0,63509.0,0.157455]
[1719805956632,0.2833,63512.0,63508.0,0.31492]
[1719805956832,0.2833,63512.0,63511.0,0.472359]
[1719805959277,0.2833,63512.0,63511.0,0.474359]
[1719805961003,0.2833,63512.0,63511.0,0.159453]
[1719805961843,0.1733,63512.0,63511.0,0.159453]
[1719805962402,0.872251,63512.0,63511.0,0.002]
[1719805962530,1.187152,63512.0,63511.0,0.002]
[1719805964298,1.502053,63512.0,63511.0,0.002]
[1719805967421,1.52892135,63512.0,63511.0,0.002]
[1719805968208,1.52892135,63512.0,63511.0,0.00195899]
[1719805973414,1.45562135,63512.0,63511.0,0.00195899]
[1719805973670,1.52892135,63512.0,63511.0,0.00195899]
[1719805990982,1.84382235,63512.0,63511.0,0.00195899]
[1719805991291,1.98486905,63512.0,63511.0,0.00195899]
[1719805991474,1.86682235,63512.0,63511.0,0.00195899]
[1719805991675,2.06682235,63512.0,63511.0,0.00195899]
[1719805991878,1.86682235,63512.0,63511.0,0.00195899]
[1719805996221,1.79352235,63512.0,63511.0,0.00195899]
[1719805996438,1.79352235,63512.0,63511.0,0.21615899]
[1719805996439,1.34342746,63512.0,63511.0,0.21615899]
[1719805996639,1.30232135,63512.0,63511.0,0.21615899]
[1719805996924,1.32232135,63512.0,63511.0,0.21615899]
[1719805997704,0.98742035,63512.0,63511.0,0.21615899]
[1719805997896,0.59921935,63512.0,63511.0,0.21615899]
[1719805998485,0.67251935,63512.0,63511.0,0.21615899]
[1719805999624,0.645651,63512.0,63511.0,0.21615899]
[1719806000000,0.1,63512.0,63511.0,0.21615899]
[1719806000218,0.1733,63512.0,63511.0,0.21615899]
[1719806000826,0.1733,63512.0,63511.0,0.2142]
[1719806001068,0.1733,63512.0,63511.0,0.2162]
[1719806001267,0.1733,63512.0,63511.0,0.217124]
[1719806001395,0.1733,63512.0,63511.0,0.221124]
[1719806001614,0.17414,63512.0,63511.0,0.231124]
[1719806001815,0.17414,63512.0,63511.0,0.225124]
[1719806002026,0.17414,63512.0,63511.0,0.231124]
[1719806002404,0.00084,63512.0,63511.0,0.231124]
[1719806002604,0.00084,63512.0,63511.0,0.382577]
[1719806002836,0.00084,63512.0,63511.0,0.703483]
[1719806003038,0.00084,63512.0,63511.0,0.693483]
[1719806003462,0.00084,63512.0,63511.0,0.703483]
[1719806004033,0.00084,63512.0,63511.0,0.693483]
[1719806004235,0.00084,63512.0,63511.0,0.707483]
[1719806004406,0.00084,63512.0,63511.0,0.701483]
[1719806004806,0.00084,63512.0,63511.0,0.707483]
[1719806005292,0.00084,63512.0,63511.0,0.701483]
[1719806005493,0.00084,63512.0,63511.0,0.715483]
[1719806009289,0.07414,63512.0,63511.0,0.715483]
[1719806009766,0.07414,63512.0,63511.0,0.701483]
[1719806010126,0.07414,63512.0,63511.0,0.715483]
[1719806010532,0.07414,63512.0,63511.0,0.701483]
[1719806010954,0.07414,63512.0,63511.0,0.243124]
[1719806011368,0.07414,63512.0,63511.0,0.229124]
[1719806011568,0.07414,63512.0,63511.0,0.243124]
[1719806012332,0.00084,63512.0,63511.0,0.243124]
[1719806012534,0.07414,63512.0,63511.0,0.243124]
[1719806015210,0.23159,63512.0,63511.0,0.148624]
[1719806015667,0.546491,63512.0,63511.0,0.028924]
[1719806016082,0.566491,63512.0,63511.0,0.028924]
[1719806016227,0.546491,63512.0,63511.0,0.028924]
[1719806017232,0.998192,63512.0,63511.0,0.028924]
[1719806017433,1.087792,63512.0,63511.0,0.028924]
[1719806018072,1.402693,63512.0,63511.0,0.028924]
[1719806018235,1.502693,63512.0,63511.0,0.014924]
[1719806018432,1.52955872,63512.0,63511.0,0.014924]
[1719806019853,1.52955872,63512.0,63511.0,0.000924]
[1719806020179,1.52955872,63512.0,63511.0,0.003924]
[1719806022387,1.296293,63512.0,63511.0,0.003924]
[1719806024752,1.222993,63512.0,63511.0,0.003924]
[1719806025089,1.296293,63512.0,63511.0,0.003924]
[1719806026415,0.12769868,63512.0,63511.0,0.202124]
[1719806026659,0.10084,63512.0,63511.0,0.202124]
[1719806027278,0.25829,63512.0,63511.0,0.202124]
[1719806027480,0.573191,63512.0,63511.0,0.000924]
[1719806027685,0.25829,63512.0,63511.0,0.000924]
[1719806027915,0.573191,63512.0,63511.0,0.000924]
[1719806028076,0.593191,63512.0,63511.0,0.000924]
[1719806028809,0.573191,63512.0,63511.0,0.003924]
[1719806029009,0.573191,63512.0,63511.0,0.009924]
[1719806029181,0.573191,63512.0,63511.0,0.006924]
[1719806029385,0.573191,63512.0,63511.0,0.016924]
[1719806034523,0.573191,63512.0,63511.0,0.215024]
[1719806036997,0.908092,63512.0,63511.0,0.016924]
[1719806037203,0.93494318,63512.0,63511.0,0.016924]
[1719806038255,0.91494318,63512.0,63511.0,0.016924]
[1719806038422,0.93494318,63512.0,63511.0,0.016924]
[1719806040658,0.91494318,63512.0,63511.0,0.016924]
[1719806040829,0.888092,63512.0,63511.0,0.016924]
[1719806043154,0.573191,63512.0,63511.0,0.016924]
[1719806043365,0.60004403,63512.0,63511.0,0.133324]
[1719806046967,0.28514303,63512.0,63511.0,0.225624]
[1719806047147,0.10084,63512.0,63511.0,0.225624]
[1719806050265,0.12768232,63512.0,63511.0,0.225624]
[1719806051734,0.28513232,63512.0,63511.0,0.225624]
[1719806052153,0.35843232,63512.0,63511.0,0.225624]
[1719806052363,0.33159,63512.0,63511.0,0.225624]
[1719806052810,0.3584389,63512.0,63511.0,0.225624]
[1719806053191,0.3584389,63512.0,63511.0,0.016924]
[1719806053409,1.3231419,63512.0,63511.0,0.016924]
[1719806056849,1.39393126,63512.0,63511.0,0.016924]
[1719806057292,1.3231419,63512.0,63511.0,0.016924]
[1719806057493,1.39393126,63512.0,63511.0,0.016924]
[1719806057866,1.3231419,63512.0,63511.0,0.016924]
[1719806058222,1.39393126,63512.0,63511.0,0.016924]
[1719806058587,1.32063126,63512.0,63511.0,0.016924]
[1719806058782,1.39393126,63512.0,63511.0,0.016924]
[1719806059258,1.3231419,63512.0,63511.0,0.016924]
[1719806059444,1.39395035,63512.0,63511.0,0.016924]
[1719806059625,1.3231419,63512.0,63511.0,0.016924]
[1719806059820,1.39395275,63512.0,63511.0,0.016924]
[1719806060155,1.3231419,63512.0,63511.0,0.016924]
[1719806061496,1.5202419,63512.0,63511.0,0.016924]
[1719806062745,1.5202419,63512.0,63511.0,0.010924]
[1719806062953,1.5202419,63512.0,63511.0,0.000924]
[1719806063160,1.5202419,63512.0,63511.0,0.003924]
[1719806067503,1.61467482,63512.0,63511.0,0.003924]
[1719806068528,1.6332719,63512.0,63511.0,0.003924]
[1719806069626,1.53883898,63512.0,63511.0,0.003924]
[1719806072490,1.63325842,63512.0,63511.0,0.003924]
[1719806073565,1.6332582,63512.0,63511.0,0.003924]
[1719806074003,1.63325742,63512.0,63511.0,0.003924]
[1719806074921,1.34173898,63512.0,63511.0,0.003924]
[1719806075131,1.41256104,63512.0,63511.0,0.003924]
[1719806075309,1.39256104,63512.0,63511.0,0.003924]
[1719806075514,1.41256104,63512.0,63511.0,0.003924]
[1719806076813,1.41256197,63512.0,63511.0,0.003924]
[1719806077710,1.41256197,63512.0,63511.0,0.207024]
[1719806077831,1.39256197,63512.0,63511.0,0.207024]
[1719806078034,0.6733399,63512.0,63511.0,0.207024]
[1719806078443,0.646491,63512.0,63511.0,0.207024]
[1719806080474,0.25829,63512.0,63511.0,0.204024]
[1719806080909,0.33159,63512.0,63511.0,0.207024]
[1719806082486,0.33159,63512.0,63511.0,0.204024]
[1719806082855,0.33159,63512.0,63511.0,0.207024]
[1719806083696,0.35844387,63512.0,63511.0,0.207024]
[1719806084194,0.33159,63512.0,63511.0,0.204024]
[1719806084334,0.33159,63512.0,63511.0,0.210024]
[1719806085292,0.33159,63512.0,63511.0,0.212024]
[1719806087057,0.666491,63512.0,63511.0,0.212024]
[1719806087513,0.666491,63512.0,63511.0,0.008924]
[1719806089501,0.69334931,63512.0,63511.0,0.008924]
[1719806089910,0.69334931,63512.0,63511.0,0.006924]
[1719806091792,0.69334931,63512.0,63511.0,0.008924]
[1719806092173,0.69334931,63512.0,63511.0,0.000924]
[1719806092537,0.69334931,63512.0,63511.0,0.003924]
[1719806092736,0.60004931,63512.0,63511.0,0.003924]
[1719806092942,0.67334931,63512.0,63511.0,0.003924]
[1719806093324,0.67334931,63512.0,63511.0,0.000924]
[1719806093735,0.67334931,63512.0,63511.0,0.003924]
[1719806094345,0.646491,63512.0,63511.0,0.003924]
[1719806095594,0.67335526,63512.0,63511.0,0.003924]
[1719806098195,0.98825626,63512.0,63511.0,0.003924]
[1719806104844,1.00825626,63512.0,63511.0,0.003924]
[1719806105354,1.32315726,63512.0,63511.0,0.003924]
[1719806105556,1.41065726,63512.0,63511.0,0.003924]
[1719806107517,1.48146868,63512.0,63511.0,0.003924]
[1719806107720,1.48147097,63512.0,63511.0,0.003924]
[1719806110905,1.48148718,63512.0,63511.0,0.003924]
[1719806111431,1.48148751,63512.0,63511.0,0.003924]
[1719806111628,1.39398751,63512.0,63511.0,0.003924]
[1719806114082,1.32315726,63512.0,63511.0,0.003924]
[1719806114281,1.39398554,63512.0,63511.0,0.003924]
[1719806116975,1.87122552,63512.0,63511.0,0.003924]
[1719806117174,2.13844438,63512.0,63511.0,0.003924]